fUSD/lending_fUSD_20260304
["ID","MTS","AMOUNT","RATE_DAILY","PERIOD"]
[407640554,1772595048632,-1500.0,0.00014919,2]
[407640555,1772595048642,-1500.0,0.00014919,2]
[407640556,1772595048652,-1034.14360128,0.00014919,2]
[407640557,1772595048661,-1500.0,0.00014919,2]
[407640558,1772595048671,-1009.03271613,0.00014919,2]
[407640559,1772595048680,-1500.0,0.00014919,2]
[407640560,1772595048689,-1500.0,0.00014919,2]
[407640561,1772595048698,-1500.0,0.00014919,2]
[407640562,1772595048708,-1500.0,0.00014919,2]
[407640563,1772595048717,-942.22982481,0.00014919,2]
[407640564,1772595048727,-1500.0,0.00014919,2]
[407640565,1772595048736,-1488.87699204,0.00014919,2]
[407640566,1772595048746,-1500.0,0.00014919,2]
[407640567,1772595048758,-1187.93333988,0.00014919,2]
[407640568,1772595048768,-750.44094392,0.00014919,2]
[407640569,1772595048778,-1500.0,0.00014919,2]
[407640570,1772595048788,-1500.0,0.00014919,2]
[407640571,1772595048798,-667.78605767,0.00014919,2]
[407640572,1772595048808,-1500.0,0.00014919,2]
[407640573,1772595048818,-1500.0,0.00014919,2]
[407640574,1772595048828,-151.0,0.00014919,2]
[407640575,1772595048838,-151.0,0.00014919,2]
[407640576,1772595048847,-151.0,0.00014919,2]
[407640577,1772595048858,-151.0,0.00014919,2]
[407640578,1772595048868,-151.0,0.00014919,2]
[407640579,1772595048877,-1000.0,0.00014984,2]
[407640580,1772595048887,-250.0,0.00015,2]
[407640581,1772595048896,-285.2,0.00015001,2]
[407640582,1772595048905,-186.71,0.00015047,2]
[407640583,1772595048915,-259.54193,0.00015068,2]
[407640584,1772595048924,-259.54193,0.00015068,2]
[407640585,1772595048933,-259.54193,0.00015068,2]
[407640586,1772595048944,-259.54193,0.00015068,2]
[407640587,1772595048954,-900.0,0.00015068,2]
[407640588,1772595048964,-493.62,0.00015068,2]
[407640589,1772595048974,-174.932822,0.00015068,2]
[407640590,1772595048984,-174.932822,0.00015068,2]
[407640591,1772595048994,-174.932822,0.00015068,2]
[407640592,1772595049003,-174.932822,0.00015068,2]
[407640593,1772595049017,-174.932822,0.00015068,2]
[407640594,1772595049028,-174.932822,0.00015068,2]
[407640595,1772595049037,-174.932822,0.00015068,2]
[407640596,1772595049048,-174.932822,0.00015068,2]
[407640597,1772595049058,-174.932822,0.00015068,2]
[407640598,1772595049069,-174.932822,0.00015068,2]
[407640599,1772595049079,-174.932822,0.00015068,2]
[407640600,1772595049088,-174.932822,0.00015068,2]
[407640601,1772595049098,-174.932822,0.00015068,2]
[407640602,1772595049107,-174.932822,0.00015068,2]
[407640603,1772595049116,-174.932822,0.00015068,2]
[407640604,1772595049126,-174.932822,0.00015068,2]
[407640605,1772595049135,-174.932822,0.00015068,2]
[407640606,1772595049144,-174.932822,0.00015068,2]
[407640607,1772595049154,-174.932822,0.00015068,2]
[407640608,1772595049163,-174.932825,0.00015068,2]
[407640609,1772595049172,-154.0,0.00015124,3]
[407640610,1772595049181,-500.0,0.00015178,2]
[407640611,1772595049191,-1513.24968459,0.00015188,2]
[407640612,1772595049200,-155.0,0.0001524,2]
[407640613,1772595049210,-249.48874237,0.00015285,2]
[407640614,1772595049219,-217.15233878,0.00015434,2]
[407640615,1772595049229,-293.17725025,0.00015434,2]
[407640616,1772595049238,-2000.0,0.00015467,2]
[407640617,1772595049248,-2000.0,0.00015467,2]
[407640618,1772595049260,-678.03716212,0.00015467,2]
[407640619,1772595049270,-2000.0,0.00015467,2]
[407640620,1772595049279,-445.1436309,0.00015467,2]
[407640621,1772595049288,-2000.0,0.00015467,2]
[407640622,1772595049297,-167.58816457,0.00015467,2]
[407640623,1772595049306,-2000.0,0.00015467,2]
[407640624,1772595049316,-2000.0,0.00015467,2]
[407640625,1772595049326,-2000.0,0.00015467,2]
[407640626,1772595049338,-2000.0,0.00015467,2]
[407640627,1772595049349,-2000.0,0.00015467,2]
[407640628,1772595049359,-417.25147671,0.00015467,2]
[407640629,1772595049368,-2000.0,0.00015467,2]
[407640630,1772595049378,-206.19569779,0.00015467,2]
[407640631,1772595049386,-2000.0,0.00015467,2]
[407640632,1772595049396,-1531.51609143,0.00015467,2]
[407640633,1772595049405,-2000.0,0.00015467,2]
[407640634,1772595049416,-2000.0,0.00015467,2]
[407640635,1772595049425,-2000.0,0.00015467,2]
[407640636,1772595049435,-2000.0,0.00015467,2]
[407640637,1772595049444,-447.72638562,0.00015467,2]
[407640638,1772595049453,-2000.0,0.00015467,2]
[407640639,1772595049462,-2055.05881874,0.00015467,2]
[407640640,1772595049472,-500.0,0.00015534,2]
[407640641,1772595049481,-2263.99922433,0.00015595,2]
[407640642,1772595049490,-186.71,0.00015674,2]
[407640643,1772595049500,-493.62,0.00015753,2]
[407640644,1772595049512,-1513.24968459,0.00015866,2]
[407640645,1772595049521,-2000.0,0.0001589,2]
[407640646,1772595049530,-163.0,0.000159,2]
[407640647,1772595049540,-225.18697532,0.00015982,2]
[407640648,1772595049549,-304.02480851,0.00015982,2]
[407640649,1772595049559,-1371.90351658,0.00016015,2]
[407640650,1772595049568,-1199.60890403,0.00016015,2]
[407640651,1772595049578,-1133.40869572,0.00016015,2]
[407640652,1772595049587,-1728.21524573,0.00016015,2]
[407640653,1772595049596,-2500.0,0.00016015,2]
[407640654,1772595049605,-2500.0,0.00016015,2]
[407640655,1772595049614,-2500.0,0.00016015,2]
[407640656,1772595049624,-2218.25820882,0.00016015,2]
[407640657,1772595049633,-2000.0,0.00016015,2]
[407640658,1772595049643,-2500.0,0.00016015,2]
[407640659,1772595049652,-283.05662359,0.00016015,2]
[407640660,1772595049662,-2500.0,0.00016015,2]
[407640661,1772595049671,-1857.73008172,0.00016015,2]
[407640662,1772595049680,-2233.88892251,0.00016015,2]
[407640663,1772595049690,-2500.0,0.00016015,2]
[407640664,1772595049699,-1055.88917722,0.00016015,2]
[407640665,1772595049708,-259.54193,0.00016015,2]
[407640666,1772595049718,-259.54193,0.00016015,2]
[407640667,1772595049727,-259.54193,0.00016015,2]
[407640668,1772595049737,-259.54193,0.00016015,2]
[407640669,1772595049747,-152.621118,0.00016015,2]
[407640670,1772595049758,-475.41,0.00016047,2]
[407640671,1772595049767,-249.48874237,0.00016157,2]
[407640672,1772595049776,-1600.0,0.0001617,2]
[407640673,1772595049785,-500.0,0.000162,2]
[407640674,1772595049794,-503.02681123,0.000162,5]
[407640675,1772595049803,-182.53,0.00016241,2]
[407640676,1772595049812,-186.71,0.00016301,2]
[407640677,1772595049821,-2263.99922433,0.00016364,2]
[407640678,1772595049831,-500.0,0.00016367,2]
[407640679,1772595049840,-500.0,0.00016438,2]
[407640680,1772595049850,-477.2,0.00016438,2]
[407640681,1772595049859,-228.23,0.00016438,2]
[407640682,1772595049868,-900.0,0.00016438,2]
[407640683,1772595049877,-1831.985537,0.00016438,2]
[407640684,1772595049887,-1831.985537,0.00016438,2]
[407640685,1772595049896,-1831.985537,0.00016438,2]
[407640686,1772595049905,-1831.985537,0.00016438,2]
[407640687,1772595049915,-1831.985537,0.00016438,2]
[407640688,1772595049924,-1831.985537,0.00016438,2]
[407640689,1772595049934,-1831.985537,0.00016438,2]
[407640690,1772595049943,-1831.985537,0.00016438,2]
[407640691,1772595049953,-1831.985537,0.00016438,2]
[407640692,1772595049962,-1831.985537,0.00016438,2]
[407640693,1772595049971,-1831.985537,0.00016438,2]
[407640694,1772595049980,-1831.985537,0.00016438,2]
[407640695,1772595049990,-1831.985537,0.00016438,2]
[407640696,1772595049999,-1831.985537,0.00016438,2]
[407640697,1772595050010,-1831.985537,0.00016438,2]
[407640698,1772595050019,-1831.985537,0.00016438,2]
[407640699,1772595050028,-1831.985537,0.00016438,2]
[407640700,1772595050037,-1831.985537,0.00016438,2]
[407640701,1772595050047,-1831.985537,0.00016438,2]
[407640702,1772595050056,-1831.985542,0.00016438,2]
[407640703,1772595050066,-165.41,0.00016438,30]
[407640704,1772595050076,-493.62,0.00016438,2]
[407640705,1772595050086,-151.0,0.00016438,2]
[407640706,1772595050095,-151.0,0.00016438,2]
[407640707,1772595050106,-151.0,0.00016438,2]
[407640708,1772595050115,-151.0,0.00016438,2]
[407640709,1772595050125,-151.0,0.00016438,2]
[407640710,1772595050134,-151.0,0.00016438,2]
[407640711,1772595050143,-151.0,0.00016438,2]
[407640712,1772595050154,-151.0,0.00016438,2]
[407640713,1772595050164,-301.47766,0.00016438,2]
[407640714,1772595050174,-151.0,0.00016438,2]
[407640715,1772595050184,-189.032343,0.00016438,2]
[407640716,1772595050193,-151.0,0.00016438,2]
[407640717,1772595050203,-151.0,0.00016438,2]
[407640718,1772595050213,-151.0,0.00016438,2]
[407640719,1772595050223,-151.0,0.00016438,2]
[407640720,1772595050233,-151.0,0.00016438,2]
[407640721,1772595050244,-151.0,0.00016438,2]
[407640722,1772595050254,-151.0,0.00016438,2]
[407640723,1772595050265,-151.0,0.00016438,2]
[407640724,1772595050275,-151.0,0.00016438,2]
[407640725,1772595050285,-151.0,0.00016438,2]
[407640726,1772595050295,-151.0,0.00016438,2]
[407640727,1772595050305,-257.452675,0.00016438,2]
[407640728,1772595050315,-151.0,0.00016438,2]
[407640729,1772595050324,-151.0,0.00016438,2]
[407640730,1772595050334,-201.691028,0.00016438,2]
[407640731,1772595050347,-50000.0,0.0001644,2]
[407640732,1772595050357,-259.54193,0.0001644,2]
[407640733,1772595050367,-259.54193,0.0001644,2]
[407640734,1772595050376,-259.54193,0.0001644,2]
[407640735,1772595050387,-259.541924,0.0001644,2]
[407640736,1772595050397,-1000.0,0.00016482,2]
[407640737,1772595050407,-500.0,0.00016493,2]
[407640738,1772595050417,-233.51889341,0.0001653,2]
[407640739,1772595050426,-315.27372642,0.0001653,2]
[407640740,1772595050435,-1513.24968459,0.00016544,2]
[407640741,1772595050445,-500.0,0.00016548,2]
[407640742,1772595050454,-3000.0,0.00016563,2]
[407640743,1772595050465,-3000.0,0.00016563,2]
[407640744,1772595050474,-1509.59066356,0.00016563,2]
[407640745,1772595050484,-2127.55720467,0.00016563,2]
[407640746,1772595050493,-1275.86396036,0.00016563,2]
[407640747,1772595050502,-3000.0,0.00016563,2]
[407640748,1772595050513,-500.0,0.00016602,2]
[407640749,1772595050523,-500.0,0.00016657,2]
[407640750,1772595050532,-500.0,0.00016712,2]
[407640751,1772595050541,-166.23,0.00016712,2]
[407640752,1772595050551,-231.01610813,0.00016767,2]
[407640753,1772595050560,-150.0,0.0001683,14]
[407640754,1772595050569,-23845.9,0.00016922,2]
[407640755,1772595050579,-9999.99,0.00016922,2]
[407640756,1772595050588,-186.71,0.00016928,2]
[407640757,1772595050598,-655.88,0.0001699,2]
[407640758,1772595050608,-500.0,0.00016999,2]
[407640759,1772595050617,-500.0,0.00016999,2]
[407640760,1772595050627,-500.0,0.00016999,2]
[407640761,1772595050636,-500.0,0.00016999,2]
[407640762,1772595050646,-82038.88167865,0.00017,2]
[407640763,1772595050655,-5022.12345678,0.00017,3]
[407640764,1772595050665,-300.0,0.00017,2]
[407640765,1772595050674,-3356.94,0.00017008,2]
[407640766,1772595050684,-316.33,0.00017028,2]
[407640767,1772595050693,-249.48874237,0.00017028,2]
[407640768,1772595050703,-242.15909246,0.00017078,2]
[407640769,1772595050713,-326.9388543,0.00017078,2]
[407640770,1772595050722,-3500.0,0.00017111,2]
[407640771,1772595050732,-3009.05458513,0.00017111,2]
[407640772,1772595050742,-3500.0,0.00017111,2]
[407640773,1772595050751,-2263.99922433,0.00017132,2]
[407640774,1772595050761,-158.56368775,0.000172,2]
[407640775,1772595050771,-158.56368775,0.000172,2]
[407640776,1772595050780,-1016.7209099,0.000172,30]
[407640777,1772595050790,-1513.24968459,0.00017222,2]
[407640778,1772595050800,-655.88,0.0001726,2]
[407640779,1772595050810,-4100.0,0.000173,6]
[407640780,1772595050820,-800.0,0.000174,6]
[407640781,1772595050829,-547.0,0.00017441,2]
[407640782,1772595050838,-246.0,0.00017441,2]
[407640783,1772595050847,-769.0,0.0001746,2]
[407640784,1772595050856,-150.0,0.0001746,2]
[407640785,1772595050865,-150.0,0.0001746,2]
[407640786,1772595050874,-169.0,0.0001746,2]
[407640787,1772595050883,-800.0,0.000175,6]
[407640788,1772595050892,-655.88,0.0001753,2]
[407640789,1772595050903,-265.339432,0.00017599,2]
[407640790,1772595050912,-163.0,0.000176,3]
[407640791,1772595050921,-165.5,0.000176,3]
[407640792,1772595050930,-800.0,0.000176,6]
[407640793,1772595050941,-278.45356844,0.00017624,2]
[407640794,1772595050951,-621.78829552,0.00017624,2]
[407640795,1772595050960,-251.11897888,0.00017626,2]
[407640796,1772595050969,-186.29482925,0.00017626,2]
[407640797,1772595050979,-1600.0,0.0001764,2]
[407640798,1772595050988,-154.0,0.00017648,3]
[407640799,1772595050998,-1086.2083457,0.00017659,2]
[407640800,1772595051009,-4000.0,0.00017659,2]
[407640801,1772595051021,-800.0,0.000177,6]
[407640802,1772595051030,-155.0,0.0001778,2]
[407640803,1772595051040,-655.88,0.000178,2]
[407640804,1772595051049,-1221.0,0.000178,6]
[407640805,1772595051058,-500.0,0.00017808,2]
[407640806,1772595051067,-800.0,0.00017808,2]
[407640807,1772595051076,-151.0,0.00017808,2]
[407640808,1772595051085,-151.000001,0.00017808,2]
[407640809,1772595051094,-500.0,0.00017863,2]
[407640810,1772595051103,-163.0,0.000179,3]
[407640811,1772595051112,-25000.0,0.000179,3]
[407640812,1772595051121,-25000.0,0.000179,3]
[407640813,1772595051130,-196.29458997,0.000179,2]
[407640814,1772595051139,-1513.24968459,0.000179,2]
[407640815,1772595051148,-249.48874237,0.000179,2]
[407640816,1772595051157,-184.09898575,0.000179,2]
[407640817,1772595051166,-9082.12010495,0.000179,2]
[407640818,1772595051175,-2263.99922433,0.000179,2]
[407640819,1772595051184,-500.0,0.00017917,2]
[407640820,1772595051192,-500.0,0.00017917,2]
[407640821,1772595051201,-500.0,0.00017917,2]
[407640822,1772595051210,-500.0,0.00017918,2]
[407640823,1772595051220,-500.0,0.00017972,2]
[407640824,1772595051233,-1000.0,0.0001798,2]
[407640825,1772595051241,-500.0,0.00017999,2]
[407640826,1772595051250,-500.0,0.00017999,2]
[407640827,1772595051259,-500.0,0.00017999,2]
[407640828,1772595051268,-500.0,0.00017999,2]
[407640829,1772595051277,-500.0,0.00017999,2]
[407640830,1772595051286,-561.75212804,0.00017999,2]
[407640831,1772595051295,-500.0,0.00017999,2]
[407640832,1772595051304,-500.0,0.00017999,2]
[407640833,1772595051312,-500.0,0.00017999,2]
[407640834,1772595051322,-500.0,0.00017999,2]
[407640835,1772595051331,-500.0,0.00017999,2]
[407640836,1772595051342,-500.0,0.00017999,2]
[407640837,1772595051352,-500.0,0.00017999,2]
[407640838,1772595051362,-500.0,0.00017999,2]
[407640839,1772595051372,-150.0,0.00017999,2]
[407640840,1772595051382,-159.2462286,0.00017999,2]
[407640841,1772595051391,-50086.54657932,0.00018,2]
[407640842,1772595051524,-5531.0,0.00018,2]
[407640854,1772595488475,180.74,9e-05,2]
[407640859,1772596012343,-262.23534842,9.003e-05,2]
[407640860,1772596155078,-237.76465158,9.003e-05,2]
[407640861,1772596155103,-518.83642089,9.003e-05,2]
[407640862,1772596155124,-501.03459068,9.003e-05,2]
[407640863,1772596155145,-225.0,9.003e-05,2]
[407640864,1772596155167,-151.21,9.6e-05,2]
[407640865,1772596155188,-291.58446572,9.6e-05,2]
[407640866,1772596155209,-512.45765913,9.902e-05,2]
[407640912,1772596232183,-676.54,0.0001066,2]
[407640916,1772596237567,-419.40778362,0.0001066,2]
[407640917,1772596237579,-166.66,0.00010976,2]
[407640918,1772596237588,-2500.0,0.00011075,2]
[407640919,1772596237599,-2500.0,0.00011075,2]
[407640920,1772596237609,-2500.0,0.00011075,2]
[407640921,1772596237618,-1261.57024195,0.00011075,2]
[407640922,1772596237628,-500.0,0.0001118,2]
[407640923,1772596237637,-500.0,0.0001118,2]
[407640924,1772596237647,-291.5844657,0.00011222,2]
[407640925,1772596237656,-166.66,0.00011339,2]
[407640926,1772596237666,-166.66,0.00011701,2]
[407640927,1772596237675,-500.0,0.00011726,2]
[407640929,1772596237685,-2604.9261989,0.00011726,2]
[407640931,1772596237694,-2500.0,0.00011726,2]
[407640933,1772596237704,-300.0,0.00011999,2]
[407640936,1772596237714,-1200.0,0.00011999,2]
[407640938,1772596237731,-500.0,0.00012,2]
[407640940,1772596237740,-500.0,0.00012,2]
[407640942,1772596237749,-500.0,0.00012,2]
[407640944,1772596237761,-373.07221866,0.00012,2]
[407640946,1772596237770,-500.0,0.00012,2]
[407640948,1772596237780,-500.0,0.00012,2]
[407640949,1772596237791,-500.0,0.00012,2]
[407640951,1772596237800,-500.0,0.00012,2]
[407640954,1772596237810,-500.0,0.00012,2]
[407640955,1772596237820,-250.0,0.00012034,2]
[407640957,1772596237830,-166.66,0.00012063,2]
[407640959,1772596237840,-197.90181769,0.0001226,2]
[407640961,1772596237849,-166.66,0.00012426,2]
[407640963,1772596237858,-3230.95,0.00012563,2]
[407640965,1772596237867,-1500.0,0.00012573,2]
[407640967,1772596237876,-150.0,0.00012607,2]
[407640969,1772596237886,-1026.99341463,0.00012679,2]
[407640971,1772596237895,-151.0,0.00012765,2]
[407640973,1772596237904,-151.0,0.00012765,2]
[407640975,1772596237913,-151.0,0.00012765,2]
[407640977,1772596237922,-151.0,0.00012765,2]
[407640979,1772596237931,-200.0,0.00012765,2]
[407640981,1772596237940,-151.0,0.00012765,2]
[407640983,1772596237949,-151.0,0.00012765,2]
[407640985,1772596237958,-151.0,0.00012765,2]
[407640986,1772596237968,-151.0,0.00012765,2]
[407640987,1772596237977,-151.0,0.00012765,2]
[407640988,1772596237987,-151.0,0.00012765,2]
[407640989,1772596237996,-151.0,0.00012765,2]
[407640990,1772596238006,-500.0,0.00012765,2]
[407640991,1772596238015,-415.62690333,0.00012765,2]
[407640992,1772596238024,-151.0,0.00012765,2]
[407640993,1772596238033,-151.0,0.00012765,2]
[407640994,1772596238043,-151.0,0.00012765,2]
[407640995,1772596238052,-151.0,0.00012765,2]
[407640996,1772596238062,-151.0,0.00012765,2]
[407640997,1772596238071,-151.0,0.00012765,2]
[407640998,1772596238081,-151.0,0.00012765,2]
[407640999,1772596238091,-151.0,0.00012765,2]
[407641000,1772596238100,-151.0,0.00012765,2]
[407641001,1772596238109,-218.23513463,0.00012765,2]
[407641002,1772596238120,-151.0,0.00012765,2]
[407641003,1772596238130,-151.0,0.00012765,2]
[407641004,1772596238139,-151.0,0.00012765,2]
[407641006,1772596238149,-151.0,0.00012765,2]
[407641008,1772596238158,-151.0,0.00012765,2]
[407641010,1772596238167,-151.0,0.00012765,2]
[407641011,1772596238177,-236.11223707,0.00012765,2]
[407641012,1772596238186,-500.62982044,0.00012773,2]
[407641013,1772596238195,-500.0,0.00012773,2]
[407641014,1772596238205,-615.62090976,0.00012773,2]
[407641015,1772596238215,-437.27938203,0.00012773,2]
[407641016,1772596238227,-64.92752092,0.00012773,2]
[407641017,1772596238237,-500.0,0.00012773,2]
[407641018,1772596238248,-500.63680364,0.00012773,2]
[407641019,1772596238270,-502.23134067,0.00012773,2]
[407641020,1772596238290,-500.47868954,0.00012773,2]
[407641021,1772596238301,-502.23611709,0.00012773,2]
[407641022,1772596238310,-500.0,0.00012773,2]
[407641023,1772596238321,-501.58257633,0.00012773,2]
[407641024,1772596238330,-318.03151824,0.00012773,2]
[407641025,1772596238342,-182.55216169,0.00012773,2]
[407641026,1772596238351,-369.50592516,0.00012773,2]
[407641027,1772596238362,-131.99603332,0.00012773,2]
[407641028,1772596238372,-166.66,0.00012788,2]
[407641029,1772596238381,-248.4604215,0.00012798,2]
[407641030,1772596238391,-291.5844657,0.00012943,2]
[407641031,1772596238400,-1108.99131394,0.00012991,2]
[407641032,1772596238411,-430.00868606,0.00012991,2]
[407641033,1772596238421,-508.54131394,0.00013017,2]
[407641034,1772596238436,-500.03289567,0.00013017,2]
[407641035,1772596238447,-190.42579039,0.00013017,2]
[407641036,1772596238457,-485.27420461,0.00013041,2]
[407641037,1772596238469,-7045.85579539,0.00013041,2]
[407641038,1772596238478,-1465.0088316,0.00013043,2]
[407641039,1772596238487,-282.0,0.00013172,2]
[407641040,1772596238497,-459.0,0.00013199,2]
[407641041,1772596238507,-1600.0,0.00013224,2]
[407641042,1772596238517,-151.0,0.00013312,2]
[407641043,1772596238526,-721.12765535,0.00013312,2]
[407641044,1772596238536,-250.0,0.00013312,2]
[407641045,1772596238545,-250.0,0.00013312,2]
[407641046,1772596238554,-250.0,0.00013312,2]
[407641047,1772596238563,-174.61919141,0.00013312,2]
[407641048,1772596238572,-250.0,0.00013312,2]
[407641049,1772596238581,-372.58257451,0.00013312,2]
[407641050,1772596238591,-500.0,0.00013312,2]
[407641051,1772596238600,-500.0,0.00013312,2]
[407641052,1772596238610,-500.0,0.00013312,2]
[407641053,1772596238619,-500.0,0.00013312,2]
[407641054,1772596238628,-500.0,0.00013312,2]
[407641055,1772596238637,-500.0,0.00013312,2]
[407641056,1772596238647,-151.0,0.00013312,2]
[407641057,1772596238655,-500.0,0.00013312,2]
[407641058,1772596238665,-151.0,0.00013312,2]
[407641059,1772596238674,-500.0,0.00013312,2]
[407641060,1772596238684,-500.0,0.00013312,2]
[407641061,1772596238693,-151.0,0.00013312,2]
[407641062,1772596238703,-578.20924308,0.00013312,2]
[407641063,1772596238714,-500.0,0.00013312,2]
[407641064,1772596238725,-151.0,0.00013312,2]
[407641065,1772596238734,-500.0,0.00013312,2]
[407641066,1772596238743,-151.0,0.00013312,2]
[407641067,1772596238752,-151.0,0.00013312,2]
[407641068,1772596238763,-151.0,0.00013312,2]
[407641069,1772596238772,-151.0,0.00013312,2]
[407641070,1772596238781,-151.0,0.00013312,2]
[407641071,1772596238791,-151.0,0.00013312,2]
[407641072,1772596238801,-693.3919763,0.00013312,2]
[407641073,1772596238811,-151.0,0.00013312,2]
[407641074,1772596238820,-743.50770149,0.00013312,2]
[407641075,1772596238830,-151.0,0.00013312,2]
[407641076,1772596238841,-250.0,0.00013312,2]
[407641077,1772596238852,-250.0,0.00013312,2]
[407641078,1772596238863,-250.0,0.00013312,2]
[407641079,1772596238872,-250.0,0.00013312,2]
[407641080,1772596238882,-250.0,0.00013312,2]
[407641081,1772596238892,-250.0,0.00013312,2]
[407641082,1772596238901,-250.0,0.00013312,2]
[407641083,1772596238911,-250.0,0.00013312,2]
[407641084,1772596238920,-250.0,0.00013312,2]
[407641085,1772596238929,-250.0,0.00013312,2]
[407641086,1772596238938,-309.02177377,0.00013312,2]
[407641087,1772596238947,-235.75327194,0.00013312,2]
[407641088,1772596238957,-269.917619,0.00013312,2]
[407641089,1772596238966,-200.0,0.00013313,2]
[407641090,1772596238976,-719.04747942,0.00013367,2]
[407641091,1772596238985,-151.0,0.00013367,2]
[407641092,1772596238996,-745.65223616,0.00013422,2]
[407641093,1772596239006,-151.0,0.00013422,2]
[407641094,1772596239016,-3240.0,0.00013425,2]
[407641095,1772596239025,-773.2413689,0.00013477,2]
[407641096,1772596239035,-151.0,0.00013477,2]
[407641097,1772596239044,-801.85129955,0.00013532,2]
[407641098,1772596239054,-151.0,0.00013532,2]
[407641099,1772596239064,-831.51979763,0.00013587,2]
[407641100,1772596239073,-151.0,0.00013587,2]
[407641101,1772596239087,-862.28603014,0.00013642,2]
[407641102,1772596239100,-500.0,0.00013644,2]
[407641103,1772596239111,-894.19061326,0.00013697,2]
[407641104,1772596239121,-927.27566595,0.00013752,2]
[407641105,1772596239131,-961.58486559,0.00013807,2]
[407641106,1772596239141,-175.78923529,0.00013811,2]
[407641107,1772596239151,-590.079,0.00013811,2]
[407641108,1772596239162,-315.74082907,0.00013823,2]
[407641109,1772596239172,-182.43846544,0.00013823,2]
[407641110,1772596239183,-500.0,0.00013823,2]
[407641111,1772596239192,-500.0,0.00013823,2]
[407641112,1772596239202,-181.08010149,0.0001386,2]
[407641113,1772596239211,-743.50770149,0.0001386,2]
[407641114,1772596239221,-269.917619,0.0001386,2]
[407641115,1772596239231,-200.0,0.00013861,2]
[407641116,1772596239240,-997.16350561,0.00013862,2]
[407641117,1772596239249,-505.0,0.00014,2]
[407641118,1772596239259,-1000.0,0.00014371,2]
[407641119,1772596239268,-1000.0,0.00014371,2]
[407641120,1772596239278,-187.78006525,0.00014408,2]
[407641121,1772596239289,-200.0,0.00014409,2]
[407641122,1772596239299,-151.0,0.00014568,2]
[407641123,1772596239308,-1043.111,0.00014571,2]
[407641124,1772596239318,-1342.788,0.00014571,2]
[407641125,1772596239329,-619.0,0.00014571,2]
[407641126,1772596239338,-3501.0,0.00014571,2]
[407641127,1772596239348,-1281.401,0.00014571,2]
[407641128,1772596239357,-922.997,0.00014571,2]
[407641129,1772596239367,-1213.621,0.00014571,2]
[407641130,1772596239378,-5987.0,0.00014571,2]
[407641131,1772596239389,-2458.0,0.00014571,2]
[407641132,1772596239398,-1100.0,0.000146,5]
[407641133,1772596239407,-2200.0,0.000147,5]
[407641134,1772596239417,-3400.0,0.000148,5]
[407641135,1772596239429,-1600.0,0.00014877,2]
[407641136,1772596239440,-4500.0,0.000149,5]
[407641137,1772596239450,-1500.0,0.00014919,2]
[407641138,1772596239461,-1500.0,0.00014919,2]
[407641139,1772596239472,-194.72792766,0.00014956,2]
[407641140,1772596239482,-1173.77,0.00015055,2]
[407641141,1772596239491,-3805.48956071,0.00015075,2]
[407641142,1772596239501,-200.0,0.00015103,2]
[407641143,1772596239510,-49528.0394,0.00015175,2]
[407641144,1772596239519,-2500.0,0.00015175,2]
[407641145,1772596239529,-214.09146042,0.00015187,2]
[407641146,1772596239538,-598.9748741,0.00015265,2]
[407641147,1772596239547,-151.0,0.00015271,2]
[407641148,1772596239557,-500.0,0.00015274,2]